bitfinex/quotes_BTCUSD_20250119
["timestamp","ask_amount","ask_price","bid_price","bid_amount"]
[1737311474229,0.64847961,105040.0,105030.0,0.92092465]
[1737311475876,0.64847961,105040.0,105030.0,0.96206435]
[1737311476092,0.64847961,105040.0,105030.0,0.96182829]
[1737311477247,0.64847961,105040.0,105030.0,1.13070824]
[1737311479055,0.64847961,105040.0,105030.0,1.34158838]
[1737311479872,0.64847961,105040.0,105030.0,1.35930898]
[1737311480075,0.64847961,105040.0,105030.0,1.61142919]
[1737311480624,0.64847961,105040.0,105030.0,1.52676882]
[1737311481830,0.64847961,105040.0,105030.0,1.2730835]
[1737311484095,0.64847961,105040.0,105030.0,1.48508116]
[1737311485093,0.70089943,105060.0,105050.0,0.095192]
[1737311485257,0.70089943,105060.0,105050.0,0.1363317]
[1737311485461,0.70089943,105060.0,105050.0,0.1494117]
[1737311486399,0.70089943,105060.0,105050.0,0.15893999]
[1737311489077,0.70089943,105060.0,105050.0,0.16832536]
[1737311490105,0.70089943,105060.0,105050.0,0.16927716]
[1737311496575,0.70056647,105060.0,105050.0,0.16927716]
[1737311497136,0.70056647,105060.0,105050.0,0.16832536]
[1737311502620,1.46380728,105060.0,105050.0,0.12718566]
[1737311503350,1.46380728,105060.0,105050.0,0.13016279]
[1737311505901,1.46380728,105060.0,105050.0,0.12077742]
[1737311508611,0.92430728,105060.0,105050.0,0.12077742]
[1737311509347,0.92430728,105060.0,105050.0,0.11780029]
[1737311510446,0.93094728,105060.0,105050.0,0.11780029]
[1737311511799,1.21726998,105060.0,105050.0,0.02260829]
[1737311512008,1.10840968,105060.0,105050.0,0.02260829]
[1737311512838,1.20840968,105060.0,105050.0,0.01308]
[1737311513188,0.1,105050.0,105040.0,0.000428]
[1737311513388,0.46607251,105050.0,105040.0,0.000428]
[1737311515422,0.46607251,105050.0,105040.0,0.04803118]
[1737311515992,0.97906967,105050.0,105040.0,0.04803118]
[1737311516638,0.98570967,105050.0,105040.0,0.04803118]
[1737311518126,0.87619472,105050.0,105040.0,0.04803118]
[1737311520274,0.70524779,105050.0,105040.0,0.04803118]
[1737311521251,0.71501025,105050.0,105040.0,0.04803118]
[1737311522704,0.58680005,105050.0,105040.0,0.04803118]
[1737311523564,0.71501025,105050.0,105040.0,0.04803118]
[1737311527502,0.58680005,105050.0,105040.0,0.04803118]
[1737311529097,0.58769886,105050.0,105040.0,0.04803118]
[1737311529510,0.50227839,105050.0,105040.0,0.04803118]
[1737311530509,0.58769886,105050.0,105040.0,0.04803118]
[1737311531065,0.245201,105040.0,105030.0,0.0961]
[1737311531269,0.38558151,105040.0,105030.0,0.0961]
[1737311533525,0.38558151,105040.0,105030.0,0.1411]
[1737311533925,0.10588081,105040.0,105030.0,0.1411]
[1737311534125,0.09924081,105040.0,105030.0,0.4124397]
[1737311534698,0.15753881,105050.0,105040.0,0.095201]
[1737311534903,0.15753881,105050.0,105040.0,0.140201]
[1737311534904,0.25677962,105050.0,105040.0,0.140201]
[1737311535325,0.10677962,105050.0,105040.0,0.140201]
[1737311535540,0.25677962,105050.0,105040.0,0.140201]
[1737311537150,0.25677962,105050.0,105040.0,0.14973023]
[1737311537358,0.25677962,105050.0,105040.0,0.15270742]
[1737311538177,0.25677962,105050.0,105040.0,0.14317819]
[1737311538684,0.25677962,105050.0,105040.0,0.140201]
[1737311541011,0.25677962,105050.0,105040.0,0.140629]
[1737311542087,0.39311132,105050.0,105040.0,0.045428]
[1737311542287,0.51771132,105050.0,105040.0,0.045428]
[1737311542851,0.36771132,105050.0,105040.0,0.045428]
[1737311544842,0.38928519,105050.0,105040.0,0.045428]
[1737311545383,0.47470566,105050.0,105040.0,0.045428]
[1737311545794,0.47470566,105050.0,105040.0,0.140629]
[1737311545795,0.41199209,105050.0,105040.0,0.140629]
[1737311546395,0.54020229,105050.0,105040.0,0.140629]
[1737311547456,0.45478182,105050.0,105040.0,0.140629]
[1737311547681,0.32657162,105050.0,105040.0,0.140629]
[1737311548579,0.32657162,105050.0,105040.0,0.045428]
[1737311548777,0.32657162,105050.0,105040.0,0.140629]
[1737311549152,0.41199209,105050.0,105040.0,0.140629]
[1737311549653,0.47470566,105050.0,105040.0,0.045428]
[1737311551502,0.77386279,105050.0,105040.0,0.045428]
[1737311552517,0.90228235,105050.0,105040.0,0.045428]
[1737311553337,0.77407215,105050.0,105040.0,0.045428]
[1737311556273,0.87407215,105050.0,105040.0,0.045428]
[1737311556469,1.17407215,105050.0,105040.0,0.045428]
[1737311556665,1.00236603,105050.0,105040.0,0.045428]
[1737311557290,1.02536603,105050.0,105040.0,0.045428]
[1737311557701,1.12556603,105050.0,105040.0,0.045428]
[1737311557901,1.06813403,105050.0,105040.0,0.045428]
[1737311559091,1.10021004,105050.0,105040.0,0.045428]
[1737311559828,1.00096923,105050.0,105040.0,0.045428]
[1737311560030,1.07796923,105050.0,105040.0,0.045428]
[1737311560233,0.97796923,105050.0,105040.0,0.045428]
[1737311560681,0.97792923,105050.0,105040.0,0.045428]
[1737311561330,0.94578212,105050.0,105040.0,0.045428]
[1737311561893,1.04502293,105050.0,105040.0,0.045428]
[1737311567982,0.94578212,105050.0,105040.0,0.045428]
[1737311568942,0.96541607,105050.0,105040.0,0.045428]
[1737311574423,0.98841607,105050.0,105040.0,0.045428]
[1737311574628,1.02958983,105050.0,105040.0,0.045428]
[1737311574834,0.98841607,105050.0,105040.0,0.045428]
[1737311575231,1.08765688,105050.0,105040.0,0.045428]
[1737311576773,0.97883064,105050.0,105040.0,0.045428]
[1737311577764,1.01097775,105050.0,105040.0,0.045428]
[1737311580776,1.71097775,105050.0,105040.0,0.045428]
[1737311581220,1.01097775,105050.0,105040.0,0.045428]
[1737311584090,1.66980399,105050.0,105040.0,0.045428]
[1737311584313,0.96980399,105050.0,105040.0,0.045428]
[1737311585176,0.90861566,105050.0,105040.0,0.045428]
[1737311585389,0.83178942,105050.0,105040.0,0.045428]
[1737311585595,0.87296318,105050.0,105040.0,0.045428]
[1737311587091,0.84064201,105050.0,105040.0,0.045428]
[1737311593712,0.87296318,105050.0,105040.0,0.045428]
[1737311594745,0.97220399,105050.0,105040.0,0.045428]
[1737311604350,1.04790399,105050.0,105040.0,0.045428]
[1737311605644,0.94866318,105050.0,105040.0,0.045428]
[1737311608281,1.01283694,105050.0,105040.0,0.045428]
[1737311608462,1.20963694,105050.0,105040.0,0.045428]
[1737311609868,0.2553,105020.0,105010.0,0.00089901]
[1737311610071,1.33808552,105000.0,104990.0,0.00089943]
[1737311610277,1.44392633,105000.0,104990.0,0.00089943]
[1737311612049,1.64316714,105000.0,104990.0,0.00089943]
[1737311612856,1.49316714,105000.0,104990.0,0.00089943]
[1737311613195,1.58510009,105000.0,104990.0,0.00089943]
[1737311613372,0.70690009,105000.0,104990.0,0.00089943]
[1737311613575,0.5395,104950.0,104930.0,0.2786149]
[1737311613817,0.64534081,104940.0,104930.0,0.285881]
[1737311614726,0.64534081,104940.0,104930.0,0.33301482]
[1737311614990,0.64543538,104940.0,104930.0,0.33301482]
[1737311615186,0.64543538,104940.0,104930.0,0.38357505]
[1737311615380,0.64543538,104940.0,104930.0,0.49240129]
[1737311616686,0.64543538,104940.0,104930.0,0.62000129]
[1737311617823,0.64543538,104940.0,104930.0,0.68282346]
[1737311618029,9.457e-05,104940.0,104930.0,0.68282346]
[1737311619078,9.457e-05,104940.0,104930.0,0.71298416]
[1737311619671,9.457e-05,104940.0,104930.0,0.68282346]
[1737311620903,9.457e-05,104940.0,104930.0,0.62000129]
[1737311621428,9.457e-05,104940.0,104930.0,0.68282346]
[1737311622122,9.457e-05,104940.0,104930.0,0.62000129]
[1737311622793,9.457e-05,104940.0,104930.0,0.62042949]
[1737311624920,9.457e-05,104940.0,104930.0,0.68325166]
[1737311626029,9.457e-05,104940.0,104930.0,0.68801967]
[1737311630192,9.457e-05,104940.0,104930.0,0.85084184]
[1737311630394,9.457e-05,104940.0,104930.0,0.90400254]
[1737311632903,5.7e-07,104940.0,104930.0,1.00324335]
[1737311633809,0.8605,104970.0,104960.0,0.328174]
[1737311634012,0.95974081,104970.0,104960.0,0.43872579]
[1737311635234,0.95974081,104970.0,104960.0,0.44468585]
[1737311636148,0.95974081,104970.0,104960.0,0.45243409]
[1737311639691,0.95974081,104970.0,104960.0,0.38961192]
[1737311640051,0.95764081,104970.0,104960.0,0.38961192]
[1737311640805,0.95764081,104970.0,104960.0,0.31622255]
[1737311641008,0.95764081,104970.0,104960.0,0.30671192]
[1737311641684,0.63750581,104970.0,104960.0,0.06143792]
[1737311642778,0.63750581,104970.0,104960.0,0.05368968]
[1737311645847,0.70032798,104970.0,104960.0,0.05368968]
[1737311646202,0.38142798,104970.0,104960.0,0.05368968]
[1737311646396,0.38142798,104970.0,104960.0,0.04772962]
[1737311646603,0.64349096,104970.0,104960.0,0.04772962]
[1737311646874,0.64349096,104970.0,104960.0,0.04815802]
[1737311647043,0.6443906,104970.0,104960.0,0.04815802]
[1737311648037,0.8581922,104970.0,104960.0,0.04815802]
[1737311648906,0.75895139,104970.0,104960.0,0.04815802]
[1737311649324,0.98195139,104970.0,104960.0,0.04815802]
[1737311650295,1.15299267,104970.0,104960.0,0.04815802]
[1737311653115,1.02490683,104970.0,104960.0,0.04815802]
[1737311653319,1.0440579,104970.0,104960.0,0.04815802]
[1737311653690,1.05384467,104970.0,104960.0,0.04815802]
[1737311654565,1.15384467,104970.0,104960.0,0.04815802]
[1737311654717,1.0910225,104970.0,104960.0,0.04815802]
[1737311658444,1.04790093,104970.0,104960.0,0.04815802]
[1737311658643,0.54292769,104970.0,104960.0,0.04815802]
[1737311658844,0.49434092,104970.0,104960.0,0.04815802]
[1737311659666,0.28070545,104970.0,104960.0,0.04815802]
[1737311661283,0.49430273,104970.0,104960.0,0.04815802]
[1737311662214,0.48770273,104970.0,104960.0,0.04815802]
[1737311662403,0.49430273,104970.0,104960.0,0.04815802]
[1737311662617,0.36614436,104970.0,104960.0,0.04815802]
[1737311663021,0.36614436,104970.0,104960.0,0.14343202]
[1737311663722,0.28070545,104970.0,104960.0,0.14343202]
[1737311664705,0.28070545,104970.0,104960.0,0.04815802]
[1737311666029,0.28070545,104970.0,104960.0,0.14343202]
[1737311666442,0.28070545,104970.0,104960.0,0.04815802]
[1737311669312,0.36614436,104970.0,104960.0,0.04815802]
[1737311670034,0.42896653,104970.0,104960.0,0.04815802]
[1737311670623,0.36614436,104970.0,104960.0,0.04815802]
[1737311672749,0.42896653,104970.0,104960.0,0.05411789]
[1737311673803,0.42896653,104970.0,104960.0,0.04815802]
[1737311674016,0.36614436,104970.0,104960.0,0.04815802]
[1737311675778,0.48770273,104970.0,104960.0,0.04815802]
[1737311676009,0.49430273,104970.0,104960.0,0.04815802]
[1737311676197,0.49430273,104970.0,104960.0,0.14343202]
[1737311676470,0.49430273,104970.0,104960.0,0.04815802]
[1737311676898,0.53551907,104970.0,104960.0,0.04815802]
[1737311679603,0.55499787,104970.0,104960.0,0.04815802]
[1737311682558,0.7258757,104970.0,104960.0,0.04815802]
[1737311684120,0.93947299,104970.0,104960.0,0.04815802]
[1737311684323,0.91999419,104970.0,104960.0,0.04815802]
[1737311685179,0.91999419,104970.0,104960.0,0.05411811]
[1737311685384,0.83455528,104970.0,104960.0,0.05411811]
[1737311686391,0.83455528,104970.0,104960.0,0.05709806]
[1737311687553,0.83455528,104970.0,104960.0,0.15237206]
[1737311687957,0.71463894,104970.0,104960.0,0.15237206]
[1737311689294,0.71463894,104970.0,104960.0,0.05709806]
[1737311689473,0.75585528,104970.0,104960.0,0.05709806]
[1737311689684,0.75585528,104970.0,104960.0,0.15237206]
[1737311689822,0.85509609,104970.0,104960.0,0.05709806]
[1737311690030,0.75585528,104970.0,104960.0,0.05709806]
[1737311690228,0.75585528,104970.0,104960.0,0.15237206]
[1737311690443,0.75585528,104970.0,104960.0,0.05709806]
[1737311690890,0.75585528,104970.0,104960.0,0.15237206]
[1737311691295,0.75585528,104970.0,104960.0,0.05709806]
[1737311691702,0.75585528,104970.0,104960.0,0.15237206]
[1737311692673,0.75422716,104970.0,104960.0,0.15237206]
[1737311693283,0.75422716,104970.0,104960.0,0.15713989]
[1737311693950,0.83983159,104970.0,104960.0,0.15713989]
[1737311694873,0.83983159,104970.0,104960.0,0.06186589]
[1737311695588,0.83983159,104970.0,104960.0,0.15713989]
[1737311696779,0.70335025,104970.0,104960.0,0.15713989]
[1737311696955,0.79861525,104970.0,104960.0,0.15713989]
[1737311697420,0.83983159,104970.0,104960.0,0.15713989]
[1737311697804,0.75422716,104970.0,104960.0,0.15713989]
[1737311698392,0.75422716,104970.0,104960.0,0.06186589]
[1737311699223,0.77722716,104970.0,104960.0,0.05709806]
[1737311700440,0.73106879,104970.0,104960.0,0.05709806]
[1737311701560,0.81650771,104970.0,104960.0,0.05709806]
[1737311702942,0.60291042,104970.0,104960.0,0.05709806]
[1737311705403,0.47969408,104970.0,104960.0,0.15237206]
[1737311705608,0.47969408,104970.0,104960.0,0.05709806]
[1737311705813,0.47969408,104970.0,104960.0,0.15237206]
[1737311706239,0.52091042,104970.0,104960.0,0.15237206]
[1737311707051,0.52091042,104970.0,104960.0,0.05709806]
[1737311707251,0.52091042,104970.0,104960.0,0.15237206]
[1737311707572,0.52091042,104970.0,104960.0,0.05411811]
[1737311707893,0.52091042,104970.0,104960.0,0.05709804]
[1737311708528,0.52091042,104970.0,104960.0,0.15237204]
[1737311708873,0.51964814,104970.0,104960.0,0.15198454]
[1737311709695,0.3831268,104970.0,104960.0,0.15198454]
[1737311710027,0.42434314,104970.0,104960.0,0.15198454]
[1737311710599,0.734059,104970.0,104960.0,0.15198454]
[1737311712117,0.51960814,104970.0,104960.0,0.15198454]
[1737311715482,0.51902778,104970.0,104960.0,0.15198454]
[1737311715679,0.51902778,104970.0,104960.0,0.05671054]
[1737311715878,0.51902778,104970.0,104960.0,0.15198454]
[1737311717250,0.73346898,104970.0,104960.0,0.15198454]
[1737311717451,0.72398764,104970.0,104960.0,0.19768454]
[1737311719606,0.76782765,104970.0,104960.0,0.19768454]
[1737311720714,0.85357904,104970.0,104960.0,0.19768454]
[1737311720930,0.89479538,104970.0,104960.0,0.19768454]
[1737311721136,0.85357904,104970.0,104960.0,0.19768454]
[1737311721359,0.94884404,104970.0,104960.0,0.19768454]
[1737311721570,0.99006038,104970.0,104960.0,0.15198454]
[1737311721772,0.89479538,104970.0,104960.0,0.15198454]
[1737311722184,0.80904399,104970.0,104960.0,0.15198454]
[1737311726700,0.89478047,104970.0,104960.0,0.15198454]
[1737311727919,0.85356413,104970.0,104960.0,0.15198454]
[1737311728951,0.63912293,104970.0,104960.0,0.15198454]
[1737311729849,0.85356413,104970.0,104960.0,0.15198454]
[1737311730897,0.76782765,104970.0,104960.0,0.15198454]
[1737311733292,0.63911368,104970.0,104960.0,0.15198454]
[1737311734531,0.85355488,104970.0,104960.0,0.15198454]
[1737311735455,0.69699488,104970.0,104960.0,0.15198454]
[1737311735683,0.60122483,104970.0,104960.0,0.47565359]
[1737311735884,0.60122483,104970.0,104960.0,0.43348454]
[1737311736265,0.60122483,104970.0,104960.0,0.35078454]
[1737311736266,0.70046564,104970.0,104960.0,0.35078454]
[1737311736515,0.10670045,104970.0,104960.0,0.35078454]
[1737311736691,0.10670045,104970.0,104960.0,0.30198454]
[1737311736891,0.14791679,104970.0,104960.0,0.14900461]
[1737311737138,0.29791679,104970.0,104960.0,0.14900461]
[1737311737321,0.10670045,104970.0,104960.0,0.14900461]
[1737311737518,0.19242768,104970.0,104960.0,0.14900461]
[1737311737866,0.18586768,104970.0,104960.0,0.14900461]
[1737311738112,0.19242768,104970.0,104960.0,0.14900461]
[1737311738309,0.49258444,104970.0,104960.0,0.14900461]
[1737311739304,0.64258444,104970.0,104960.0,0.14900461]
[1737311739520,0.49258444,104970.0,104960.0,0.14900461]
[1737311739700,0.49258444,104970.0,104960.0,0.1519843]
[1737311739855,0.53380078,104970.0,104960.0,0.1519843]
[1737311740220,0.61320078,104970.0,104960.0,0.1519843]
[1737311741174,0.57198444,104970.0,104960.0,0.1519843]
[1737311741795,0.78026578,104970.0,104960.0,0.1519843]
[1737311742355,0.99470698,104970.0,104960.0,0.1519843]
[1737311743413,0.78034114,104970.0,104960.0,0.1519843]
[1737311743613,0.78034114,104970.0,104960.0,0.14900461]
[1737311744053,0.78034114,104970.0,104960.0,0.15198454]
[1737311746102,0.78034114,104970.0,104960.0,0.05671054]
[1737311747076,0.78034114,104970.0,104960.0,0.05373061]
[1737311747637,0.78034114,104970.0,104960.0,0.14900461]
[1737311747774,0.60882299,104970.0,104960.0,0.14900461]
[1737311748178,0.39438179,104970.0,104960.0,0.14900461]
[1737311748376,0.20910045,104970.0,104960.0,0.14900461]
[1737311748560,0.10670045,104970.0,104960.0,0.14900461]
[1737311748772,0.25670045,104970.0,104960.0,0.14900461]
[1737311749197,0.10670045,104970.0,104960.0,0.14900461]
[1737311749400,0.25670045,104970.0,104960.0,0.14900461]
[1737311749603,0.25670045,104970.0,104960.0,0.15198434]
[1737311750939,0.60339854,104970.0,104960.0,0.05671034]
[1737311751114,0.65199854,104970.0,104960.0,0.05671034]
[1737311751492,0.39568179,104970.0,104960.0,0.05671034]
[1737311752300,0.39568179,104970.0,104960.0,0.05373061]
[1737311753204,0.39568179,104970.0,104960.0,0.14900461]
[1737311753659,0.39568179,104970.0,104960.0,0.05373061]
[1737311755152,0.39568179,104970.0,104960.0,0.05671061]
[1737311755597,0.39568179,104970.0,104960.0,0.15198461]
[1737311758258,0.39568179,104970.0,104960.0,0.05671061]
[1737311763323,0.39568179,104970.0,104960.0,0.05373061]
[1737311765202,0.38912179,104970.0,104960.0,0.05373061]
[1737311765409,0.35446545,104970.0,104960.0,0.14900461]
[1737311766126,0.39568179,104970.0,104960.0,0.05373061]
[1737311767286,0.39568179,104970.0,104960.0,0.05671057]
[1737311767922,0.21060045,104970.0,104960.0,0.15198457]
[1737311771366,0.30586545,104970.0,104960.0,0.15198457]
[1737311771796,0.34708179,104970.0,104960.0,0.15198457]
[1737311773122,0.30586545,104970.0,104960.0,0.15198457]
[1737311776216,0.69098058,104970.0,104960.0,0.15198457]
[1737311777972,0.81935485,104970.0,104960.0,0.15198457]
[1737311778137,0.63662985,104970.0,104960.0,0.15198457]
[1737311778345,0.62018985,104970.0,104960.0,0.27010091]
[1737311778547,0.61362985,104970.0,104960.0,0.31680091]
[1737311778860,0.62018985,104970.0,104960.0,0.42558457]
[1737311779070,0.49184962,104970.0,104960.0,0.42558457]
[1737311780060,0.49184962,104970.0,104960.0,0.46680091]
[1737311780373,0.10670045,104970.0,104960.0,0.42558457]
[1737311787196,0.10014045,104970.0,104960.0,0.42558457]
[1737311787381,0.10670045,104970.0,104960.0,0.42558457]
[1737311788431,0.29791679,104970.0,104960.0,0.15198457]
[1737311788566,0.33390045,104970.0,104960.0,0.15198457]
[1737311789523,0.25670045,104970.0,104960.0,0.15198457]
[1737311791677,0.25666045,104970.0,104960.0,0.32335356]
[1737311791880,0.25666045,104970.0,104960.0,0.32240091]
[1737311792508,0.25666045,104970.0,104960.0,0.28118457]
[1737311792918,0.25666045,104970.0,104960.0,0.27820461]
[1737311793741,0.25666045,104970.0,104960.0,0.14900461]
[1737311794087,0.25666045,104970.0,104960.0,0.14995722]
[1737311794694,0.25666045,104970.0,104960.0,0.14900461]
[1737311794896,0.35192545,104970.0,104960.0,0.14900461]
[1737311796633,0.25666045,104970.0,104960.0,0.14900461]
[1737311797382,0.34227307,104970.0,104960.0,0.14900461]
[1737311798349,0.43753807,104970.0,104960.0,0.14900461]
[1737311798807,0.34227307,104970.0,104960.0,0.14900461]
[1737311801838,0.47064734,104970.0,104960.0,0.14900461]
[1737311802669,0.34227307,104970.0,104960.0,0.14900461]
[1737311803201,0.33575307,104970.0,104960.0,0.14900461]
[1737311803416,0.34227307,104970.0,104960.0,0.14900461]
[1737311803831,0.19227307,104970.0,104960.0,0.14900461]
[1737311804888,0.18575307,104970.0,104960.0,0.14900461]
[1737311805100,0.19227307,104970.0,104960.0,0.14900461]
[1737311811822,0.34227307,104970.0,104960.0,0.14900461]
[1737311812047,0.19227307,104970.0,104960.0,0.14900461]
[1737311813369,0.33575307,104970.0,104960.0,0.14900461]
[1737311813582,0.24303226,104970.0,104960.0,0.27207362]
[1737311813868,0.24303226,104970.0,104960.0,0.30512095]
[1737311814424,0.23651226,104970.0,104960.0,0.30512095]
[1737311814956,0.15089964,104970.0,104960.0,0.22990461]
[1737311815164,0.00089964,104970.0,104960.0,0.22990461]
[1737311815601,0.15089964,104970.0,104960.0,0.22990461]
[1737311815988,0.15089964,104970.0,104960.0,0.14900461]
[1737311816841,0.15089964,104970.0,104960.0,0.14995721]
[1737311817504,0.15089964,104970.0,104960.0,0.14399712]
[1737311818287,0.15089964,104970.0,104960.0,0.14995628]
[1737311826731,0.23651226,104970.0,104960.0,0.14995628]
[1737311827001,0.34227307,104970.0,104960.0,0.14995628]
[1737311827167,0.43753807,104970.0,104960.0,0.14900368]
[1737311827940,0.56591234,104970.0,104960.0,0.14900368]
[1737311828408,0.64221234,104970.0,104960.0,0.14900368]
[1737311829598,0.73002868,104970.0,104960.0,0.05372968]
[1737311829799,0.58002868,104970.0,104960.0,0.05372968]
[1737311831785,0.90253119,104970.0,104960.0,0.05372968]
[1737311835815,0.94374753,104970.0,104960.0,0.05372968]
[1737311836021,0.90253119,104970.0,104960.0,0.05372968]
[1737311836211,0.77415692,104970.0,104960.0,0.05372968]
[1737311837161,0.77415692,104970.0,104960.0,0.04777052]
[1737311837706,0.64578521,104970.0,104960.0,0.04777052]
[1737311839897,0.60261021,104970.0,104960.0,0.04777052]
[1737311841180,0.77346229,104970.0,104960.0,0.04777052]
[1737311843415,0.60261021,104970.0,104960.0,0.04777052]
[1737311845491,0.73227833,104970.0,104960.0,0.04777052]
[1737311845708,0.77349467,104970.0,104960.0,0.04777052]
[1737311846521,0.90170365,104970.0,104960.0,0.04777052]
[1737311847172,0.90170365,104970.0,104960.0,0.0537307]
[1737311847588,0.85510365,104970.0,104960.0,0.0537307]
[1737311847975,0.85510365,104970.0,104960.0,0.1490047]
[1737311848176,0.85510365,104970.0,104960.0,0.0537307]
[1737311848707,0.72703497,104970.0,104960.0,0.0537307]
[1737311849753,0.55615051,104970.0,104960.0,0.0537307]
[1737311854515,0.72703497,104970.0,104960.0,0.0537307]
[1737311859779,0.94060339,104970.0,104960.0,0.0537307]
[1737311864031,0.94060339,104970.0,104960.0,0.06326679]
[1737311865027,0.94060339,104970.0,104960.0,0.0537307]
[1737311865647,0.85510365,104970.0,104960.0,0.0537307]
[1737311869433,0.85510365,104970.0,104960.0,0.0632668]
[1737311872557,0.72689467,104970.0,104960.0,0.0632668]
[1737311873521,0.245274,104960.0,104950.0,0.2932232]
[1737311873725,0.34451481,104960.0,104950.0,0.29337284]
[1737311874233,0.24924081,104960.0,104950.0,0.29337284]
[1737311874956,0.33486256,104960.0,104950.0,0.29337284]
[1737311875075,0.33486256,104960.0,104950.0,0.31419284]
[1737311875943,0.43013656,104960.0,104950.0,0.31419284]
[1737311877440,0.42955457,104960.0,104950.0,0.31419284]
[1737311878801,0.55798719,104960.0,104950.0,0.31419284]
[1737311880438,0.46271319,104960.0,104950.0,0.31419284]
[1737311882123,0.46919319,104960.0,104950.0,0.31419284]
[1737311882439,0.34076057,104960.0,104950.0,0.31419284]
[1737311884405,0.33428057,104960.0,104950.0,0.31419284]
[1737311884641,0.34076057,104960.0,104950.0,0.32372852]
[1737311886086,0.43603457,104960.0,104950.0,0.13317252]
[1737311886238,0.43603457,104960.0,104950.0,0.03789752]
[1737311886442,0.55555091,104960.0,104950.0,0.03789752]
[1737311886999,0.55555091,104960.0,104950.0,0.13318052]
[1737311887260,1.06843641,104960.0,104950.0,0.13318052]
[1737311887464,1.06843641,104960.0,104950.0,0.13360852]
[1737311889658,1.06843641,104960.0,104950.0,0.03832552]
[1737311890360,1.06843641,104960.0,104950.0,0.13360852]
[1737311891347,1.07793543,104960.0,104950.0,0.13360852]
[1737311891752,1.06843641,104960.0,104950.0,0.13360852]
[1737311891955,1.02722007,104960.0,104950.0,0.13360852]
[1737311892157,1.02722007,104960.0,104950.0,0.03832552]
[1737311892158,1.06843641,104960.0,104950.0,0.03832552]
[1737311893784,1.06785442,104960.0,104950.0,0.13360852]
[1737311894281,0.98223267,104960.0,104950.0,0.13360852]
[1737311894934,0.94101633,104960.0,104950.0,0.13360852]
[1737311898464,1.02678252,104960.0,104950.0,0.13360852]
[1737311899064,1.02768153,104960.0,104950.0,0.13360852]
[1737311899447,0.81348272,104960.0,104950.0,0.13360852]
[1737311900575,0.81348272,104960.0,104950.0,0.03832552]
[1737311902203,0.94212403,104960.0,104950.0,0.03832552]
[1737311905537,0.84685003,104960.0,104950.0,0.13360852]
[1737311906406,0.71907703,104960.0,104950.0,0.13360852]
[1737311907889,0.71907703,104960.0,104950.0,0.12407284]
[1737311908712,0.71907703,104960.0,104950.0,0.13360902]
[1737311909243,0.64077703,104960.0,104950.0,0.13360902]
[1737311909442,0.85434545,104960.0,104950.0,0.13360902]
[1737311909805,0.85434545,104960.0,104950.0,0.17482536]
[1737311910070,0.85434545,104960.0,104950.0,0.13360902]
[1737311910813,0.64077703,104960.0,104950.0,0.13360902]
[1737311911425,0.48487902,104960.0,104950.0,0.2570781]
[1737311911640,0.3862202,104960.0,104950.0,0.48552536]
[1737311911795,0.22181574,104960.0,104950.0,0.45152536]
[1737311913031,0.0074197,104960.0,104950.0,0.45152536]
[1737311915462,0.0074197,104960.0,104950.0,0.46087995]
[1737311929575,0.00061955,104960.0,104950.0,0.46087995]
[1737311929773,0.00709955,104960.0,104950.0,0.46087995]
[1737311933185,0.00709955,104960.0,104950.0,0.4927007]
[1737311933708,0.00709955,104960.0,104950.0,0.46087995]
[1737311934337,0.00709955,104960.0,104950.0,0.33417995]
[1737311934537,0.00709955,104960.0,104950.0,0.33437645]
[1737311936278,0.00709955,104960.0,104950.0,0.33417995]
[1737311940195,0.00709955,104960.0,104950.0,0.32464377]
[1737311940778,0.00709955,104960.0,104950.0,0.33417884]
[1737311942070,0.00709955,104960.0,104950.0,0.3343696]
[1737311947423,0.00061955,104960.0,104950.0,0.3343696]
[1737311949224,0.09986036,104960.0,104950.0,0.3343696]
[1737311949427,0.27463436,104960.0,104950.0,0.04787026]
[1737311949628,0.32393436,104960.0,104950.0,0.04787026]
[1737311950961,0.32393436,104960.0,104950.0,0.0476795]
[1737311951180,0.32393436,104960.0,104950.0,0.1429625]
[1737311951528,0.5383304,104960.0,104950.0,0.1429625]
[1737311953991,0.4430564,104960.0,104950.0,0.1429625]
[1737311955598,0.59247441,104960.0,104950.0,0.1429625]
[1737311955803,0.59247441,104960.0,104950.0,0.13360791]
[1737311957423,0.76335887,104960.0,104950.0,0.13360791]
[1737311958749,0.59247441,104960.0,104950.0,0.13360791]
[1737311959861,0.76335887,104960.0,104950.0,0.13360791]
[1737311960262,0.85863287,104960.0,104950.0,0.03832491]
[1737311961102,0.68774841,104960.0,104950.0,0.03832491]
[1737311961300,0.68774841,104960.0,104950.0,0.13360791]
[1737311961301,0.59247441,104960.0,104950.0,0.13360791]
[1737311969387,0.4638331,104960.0,104950.0,0.13360791]
[1737311974699,0.4638331,104960.0,104950.0,0.08360791]
[1737311977079,0.5591071,104960.0,104950.0,0.00294]
[1737311977278,0.4638331,104960.0,104950.0,0.098223]
[1737311979298,0.4638331,104960.0,104950.0,0.0986511]
[1737311980840,0.4145331,104960.0,104950.0,0.0986511]
[1737311982434,0.32877837,104960.0,104950.0,0.0986511]
[1737311986069,0.4145331,104960.0,104950.0,0.0986511]
[1737311989897,0.5098071,104960.0,104950.0,0.0033681]
[1737311990727,0.5098071,104960.0,104950.0,0.0986511]
[1737311991457,0.5098071,104960.0,104950.0,0.0033681]
[1737311991613,0.80933287,104960.0,104950.0,0.0986511]
[1737311992884,0.71405887,104960.0,104950.0,0.0986511]
[1737311995735,0.80933287,104960.0,104950.0,0.0986511]
[1737311996372,0.80933287,104960.0,104950.0,0.0033681]
[1737311996825,0.80933287,104960.0,104950.0,0.0986511]
[1737311997455,0.71405887,104960.0,104950.0,0.0986511]
[1737311998923,0.71405887,104960.0,104950.0,0.095283]
[1737311999762,0.4375331,104960.0,104950.0,0.095283]
[1737312000306,0.3350331,104960.0,104950.0,0.13649934]
[1737312000782,0.3414731,104960.0,104950.0,0.095283]
[1737312001343,0.3414731,104960.0,104950.0,0.14292247]
[1737312003324,0.3414731,104960.0,104950.0,0.14335057]
[1737312004030,0.19205509,104960.0,104950.0,0.14335057]
[1737312004240,0.3414731,104960.0,104950.0,0.14335057]
[1737312005588,0.8809731,104960.0,104950.0,0.14335057]
[1737312006813,0.8809731,104960.0,104950.0,0.04469947]
[1737312006966,0.8809731,104960.0,104950.0,0.13998247]
[1737312007393,0.64580036,104960.0,104950.0,0.40515597]
[1737312007730,0.64580036,104960.0,104950.0,0.44541956]
[1737312008097,0.64580036,104960.0,104950.0,0.40420322]
[1737312008330,0.64580036,104960.0,104950.0,0.41359881]
[1737312008950,0.63936036,104960.0,104950.0,0.41359881]
[1737312009155,0.64580036,104960.0,104950.0,0.41359881]
[1737312009320,0.64580036,104960.0,104950.0,0.42306006]
[1737312009529,0.63936036,104960.0,104950.0,0.42306006]
[1737312009742,0.64580036,104960.0,104950.0,0.28307759]
[1737312009946,0.64580036,104960.0,104950.0,0.37836059]
[1737312010499,0.64580036,104960.0,104950.0,0.33714425]
[1737312011224,0.64521837,104960.0,104950.0,0.25474425]
[1737312011370,0.64521837,104960.0,104950.0,0.245283]
[1737312012192,0.64521837,104960.0,104950.0,0.29292247]